Cogmind - Beta 16 @@@ ROGUE MODE // 2025.12.31 @ 16:47:40 Player: Compilatron Result: Destroyed by B-86 Titan with Matter Neutralizer Performance ------------- Evolutions (5) 2500 Regions Visited (11) 2200 Robots Destroyed (25) 125 Value Destroyed (664) 664 Prototype IDs (53) 1060 Alien Tech Used (0) 0 Bonus (1275) 1275 TOTAL SCORE: 7824 Bonus ------- Registered with UFD 300 Met Warlord at Base 500 MAIN.C Attacked Warlord 500 Friendly Fire -25 Cogmind --------- Core Integrity 0/1000 Matter 300/300 Energy 82/100 System Corruption 0% Temperature Cool (13) Movement Flying (32) Location -5/Warlord Parts ------- > --- POWER (2) -------- (None) > --- PROPULSION (7) --- Cesium-ion Thruster Cesium-ion Thruster > --- UTILITY (6) ------ Improved Signal Interpreter Advanced Terrain Scan Processor > --- WEAPON (2) ------- (None) > --- INVENTORY (5) ---- Cesium-ion Thruster Hardened Light Armor Plating Dispersion Rifle KE Penetrator KE Penetrator Peak State ------------ > --- POWER ------------ Light Neutrino Core > --- PROPULSION ------- Nuclear Pulse Thruster Nuclear Pulse Array Nuclear Pulse Array Nuclear Pulse Array > --- UTILITY ---------- Improved Sensor Array Improved Signal Interpreter Advanced Terrain Scanner Advanced Terrain Scan Processor Improved Reaction Control System Improved Light Armor Plating > --- WEAPON ----------- Heavy Machine Gun Heavy Machine Gun > --- INVENTORY -------- Nuclear Pulse Thruster Medium Storage Unit Compact Matter Pod Improved Terrain Scanner Heavy Machine Gun [Rating: 82] Favorites ----------- Power Light Nuclear Core Engine Subdweller Power Source Power Core Light Nuclear Core Propulsion Light Treads Treads Light Treads Leg Aluminum Leg Wheel Compact Wheel Hover Unit Backup Propulsion III Flight Unit Nuclear Pulse Thruster Utility Seismic Detector Device Seismic Detector Storage Large Storage Unit Processor Improved Signal Interpreter Hackware Improved Hacking Suite Protection Tower Shield Weapon Assault Rifle Energy Gun Backup Laser III Ballistic Gun Assault Rifle Launcher Grenade Launcher Slashing Weapon Mining Claw Build | -11 -10 -10 -10 -9 -6 -6 -6 -5 -5 -5 -5 ------- Run | Yrd Mat Min Sub Scr Fac Low Low Fac Upp Upp War Slots Evolved 10 | . . . . . 8 . . 2 . . . Power 1 | . . . . . . . . 1 . . . Propulsion 5 | . . . . . 4 . . 1 . . . Utility 4 | . . . . . 4 . . . . . . Weapon . | . . . . . . . . . . . . Parts Attached 58 | . 9 5 5 . 15 . . 16 1 2 5 Power 5 | . 1 . 1 . 2 . . 1 . . . Engine 1 | . . . 1 . . . . . . . . Core 4 | . 1 . . . 2 . . 1 . . . Reactor . | . . . . . . . . . . . . Propulsion 19 | . 3 2 . . 6 . . 6 . . 2 Treads 6 | . 2 1 . . 3 . . . . . . Leg . | . . . . . . . . . . . . Wheel 3 | . 1 1 . . . . . 1 . . . Hover . | . . . . . . . . . . . . Flight 10 | . . . . . 3 . . 5 . . 2 Utility 20 | . 3 . 1 . 5 . . 8 1 1 1 Device 8 | . 1 . . . 3 . . 3 1 . . Storage 3 | . 2 . . . . . . 1 . . . Processor 2 | . . . . . 1 . . 1 . . . Hackware 4 | . . . . . 1 . . 2 . 1 . Protection 3 | . . . 1 . . . . 1 . . 1 Artifact . | . . . . . . . . . . . . Weapon 14 | . 2 3 3 . 2 . . 1 . 1 2 Energy Gun . | . . . . . . . . . . . . Energy Cannon . | . . . . . . . . . . . . Ballistic Gun 11 | . 2 2 2 . 2 . . 1 . . 2 Ballistic Cannon . | . . . . . . . . . . . . Launcher 2 | . . 1 . . . . . . . 1 . Special Weapon . | . . . . . . . . . . . . Impact Weapon . | . . . . . . . . . . . . Slashing Weapon 1 | . . . 1 . . . . . . . . Piercing Weapon . | . . . . . . . . . . . . Special Melee Weapon . | . . . . . . . . . . . . Unidentified Prototypes 1 | . . . . . . . . 1 . . . Parts Lost 34 | . 2 3 . . 1 . . 9 4 6 9 Power 5 | . 1 . . . . . . 1 . 1 2 Propulsion 11 | . . 1 . . . . . 4 1 3 2 Utility 10 | . . . . . 1 . . 2 2 2 3 Weapon 8 | . 1 2 . . . . . 2 1 . 2 Highest Loss Streak 5 | . 2 2 . . 1 . . 3 3 4 5 To Critical Strikes . | . . . . . . . . . . . . Average Backups 5 | . 8 13 6 . 2 4 5 4 6 5 4 Power . | . 1 1 . . . . . . . . . Propulsion . | . 3 3 . . . . . . 1 . . Utility 1 | . 1 1 1 . 1 2 3 2 4 4 2 Weapon 2 | . 2 6 3 . 1 2 2 1 1 1 2 Tool/Special . | . . . . . . . . . . . . Unused Backups 22 | . 4 1 8 . . . . 1 . 4 4 Power 2 | . 1 . 1 . . . . . . . . Propulsion 1 | . . . 1 . . . . . . . . Utility 10 | . 2 . 1 . . . . 1 . 4 2 Weapon 8 | . 1 1 4 . . . . . . . 2 Tool/Special 1 | . . . 1 . . . . . . . . Average Slot Usage (%) 74 | . 91 91 83 85 52 60 60 67 60 44 45 Engine 4 | . 11 . 4 7 1 . . . . . 6 Core 5 | . 2 14 7 7 5 6 6 4 5 . . Treads 9 | . 17 14 13 14 3 . . . . . . Wheel 4 | . 8 6 7 7 1 . . . . . . Hover 1 | . . . . . . . . . . . 6 Flight 3 | . . . . . 14 20 20 18 16 10 . Device 6 | . 6 14 7 7 5 6 6 11 8 . 1 Storage 6 | . 13 14 7 7 1 . . . 5 3 . Processor 3 | . . . . . 1 6 6 10 11 11 11 Hackware 2 | . . . . . . 6 6 7 5 10 4 Protection 3 | . . . 6 7 1 . . 1 . 3 3 Ballistic Gun 16 | . 24 21 20 21 12 13 13 10 4 . 4 Slashing Weapon 2 | . . . 6 7 1 . . . . . . Peak Build Rating 82 | . 10 11 53 53 53 40 40 82 73 64 43 Average Rating 36 | . 7 10 37 53 33 40 40 55 69 42 33 On Entrance 32 | 6 6 10 10 53 53 40 40 40 71 47 14 Avg Prop Armor Cover (%) 6 | . 12 9 5 4 9 . . 7 . . . Naked Turns . | . . . . . . . . . . . . Heaviest Build 77 | 13 49 31 77 77 77 18 18 30 25 30 22 Greatest Support 56 | 20 40 20 16 16 56 18 18 45 39 32 16 Greatest Overweight (x) 4 | . 1 1 4 4 4 . . 1 . 3 4 Average Overweight (x) 1 | . . 1 3 4 . . . . . . . Largest Inventory Capacity 20 | . 20 15 15 15 15 5 5 10 10 10 5 Average Capacity 11 | . 15 15 14 15 7 5 5 5 10 8 5 Most Carried 15 | . 12 15 15 15 15 5 5 6 8 9 5 Average Carried 9 | . 8 14 13 15 2 4 5 4 6 5 4 Final Capacity 15 | 8 15 15 15 15 5 5 5 10 10 5 5 Final Carried 15 | 6 12 12 15 15 5 5 5 6 8 5 5 Class Distribution -------------------- 47% | Mutant 37% | Gunner 8% | Hacker-Mutant 5% | Scout Dominant Class ---------------- Mutant | -10/Materials Mutant | -10/Mines Gunner | -10/Subcaves Gunner | -9/Scraptown Mutant | -6/Factory Mutant | -6/Lower Caves Mutant | -6/Lower Caves Hacker-Mutant | -5/Factory Scout | -5/Upper Caves Hacker-Mutant | -5/Upper Caves Mutant | -5/Warlord Resources | -11 -10 -10 -10 -9 -6 -6 -6 -5 -5 -5 -5 ----------- Run | Yrd Mat Min Sub Scr Fac Low Low Fac Upp Upp War Matter Collected 1590 | 200 326 83 325 . . 36 . 416 109 40 55 Remotely . | . . . . . . . . . . . . Salvage Created 717 | . 359 87 224 . . . . 47 . . . Parts 49 | . 30 7 8 . . . . 4 . . . Haulers Intercepted . | . . . . . . . . . . . . Recyclers Shooed 1 | . . . . . . . . 1 . . . Parts Field Recycled . | . . . . . . . . . . . . Retrieved Matter . | . . . . . . . . . . . . Parts Self-Destructed 16 | . . . 9 . . 2 . . 1 4 . Prevented 3 | . . . . . . . . . 2 1 . Parts Restored . | . . . . . . . . . . . . Kills | -11 -10 -10 -10 -9 -6 -6 -6 -5 -5 -5 -5 ------- Run | Yrd Mat Min Sub Scr Fac Low Low Fac Upp Upp War Combat Hostiles Destroyed 25 | . 14 5 5 . . . . 1 . . . Guns 23 | . 14 3 5 . . . . 1 . . . AOE 2 | . . 2 . . . . . . . . . Classes Destroyed 4 | . 2 . 1 . . . . 1 . . . Swarmer 12 | . 9 3 . . . . . . . . . Grunt 7 | . 5 2 . . . . . . . . . Programmer 1 | . . . . . . . . 1 . . . Subdweller 5 | . . . 5 . . . . . . . . Best Kill Streak 4 | . 4 3 2 . . . . 1 . . . Combat Bots Only 4 | . 4 3 2 . . . . 1 . . . Max Kills in Single Turn 2 | . 1 1 2 . . . . 1 . . . Gunslinging 1 | . . . 1 . . . . . . . . Exploded 1 | . . 1 . . . . . . . . . Melee . | . . . . . . . . . . . . Uniques/NPCs Destroyed . | . . . . . . . . . . . . Combat | -11 -10 -10 -10 -9 -6 -6 -6 -5 -5 -5 -5 -------- Run | Yrd Mat Min Sub Scr Fac Low Low Fac Upp Upp War Hostile Shots Fired 470 | . 89 36 24 . 46 1 . 72 58 71 73 Missed 180 | . 24 9 6 . 26 . . 27 31 32 25 Hits 290 | . 65 27 18 . 20 1 . 45 27 39 48 Projectile 290 | . 65 27 18 . 20 1 . 45 27 39 48 Critical Strikes 7 | . . . . . 1 . . 3 1 1 1 Damage Taken 4850 | . 581 271 367 . 353 20 . 925 511 583 1239 Core 1272 | . 95 50 23 . 79 20 . 155 88 268 494 Absorbed by Shields . | . . . . . . . . . . . . Regen/Repaired (Parts) 307 | . 214 . . . . . . 93 . . . Core Remaining (%) 73 | 100 . . . 32 . . 88 . . . . Volleys Fired 87 | . 37 14 21 . 1 . . 8 . . 6 Largest 3 | . 2 2 3 . 2 . . 2 . . 2 Hottest 80 | . 60 50 65 . 60 . . 60 . . 80 Shots Fired 183 | . 73 23 57 . 2 . . 16 . . 12 Gun 179 | . 73 19 57 . 2 . . 16 . . 12 Cannon . | . . . . . . . . . . . . Launcher 4 | . . 4 . . . . . . . . . Special . | . . . . . . . . . . . . Kinetic 166 | . 72 19 57 . 2 . . 16 . . . Thermal 13 | . 1 . . . . . . . . . 12 Explosive 4 | . . 4 . . . . . . . . . Electromagnetic . | . . . . . . . . . . . . Robot Hit Streak 12 | . 9 6 12 . . . . 2 . . 8 Robot Miss Streak 3 | . 3 1 3 . . . . 2 . . 2 Penetration Max . | . . . . . . . . . . . . Secondary Targets 3 | . 2 . 1 . . . . . . . . Max Gunslinging Chain 1 | . 1 . 1 . . . . . . . . Shots Hit Robots 112 | . 45 11 39 . . . . 7 . . 10 Core Hits 46 | . 21 8 12 . . . . 3 . . 2 Critical Kills . | . . . . . . . . . . . . Critical Parts Destroyed 1 | . 1 . . . . . . . . . . Critical Strikes 1 | . 1 . . . . . . . . . . Destroy 1 | . 1 . . . . . . . . . . Melee Attacks 6 | . . . 6 . . . . . . . . Impact . | . . . . . . . . . . . . Slashing 6 | . . . 6 . . . . . . . . Piercing . | . . . . . . . . . . . . Sneak Attacks . | . . . . . . . . . . . . Combat Hostiles . | . . . . . . . . . . . . Follow-up Attacks . | . . . . . . . . . . . . Damage Inflicted 1809 | . 599 317 526 . . . . 225 . 4 138 Guns 1635 | . 599 147 526 . . . . 225 . . 138 Cannons . | . . . . . . . . . . . . Explosions 170 | . . 170 . . . . . . . . . Melee . | . . . . . . . . . . . . Ramming 4 | . . . . . . . . . . 4 . Kinetic 1497 | . 599 147 526 . . . . 225 . . . Thermal 138 | . . . . . . . . . . . 138 Explosive 170 | . . 170 . . . . . . . . . Electromagnetic . | . . . . . . . . . . . . Impact . | . . . . . . . . . . . . Slashing . | . . . . . . . . . . . . Piercing . | . . . . . . . . . . . . Highest Corruption 1 | . . . . . . . . 1 1 1 1 Average Corruption 1 | . . . . . . . . 1 1 1 1 Corruption Purged . | . . . . . . . . . . . . Corruption Blocked . | . . . . . . . . . . . . Effects 9 | . . . . . . . . 1 4 3 1 Message Errors 2 | . . . . . . . . . . 1 1 Heat Flow Errors 2 | . . . . . . . . . . 2 . Energy Discharges 4 | . . . . . . . . . 4 . . Parts Fused 1 | . . . . . . . . 1 . . . Overload Shots . | . . . . . . . . . . . . Overflow Damage 42 | . . 42 . . . . . . . . . Projectiles . | . . . . . . . . . . . . Explosions 42 | . . 42 . . . . . . . . . Melee . | . . . . . . . . . . . . Knockbacks . | . . . . . . . . . . . . Impact . | . . . . . . . . . . . . Kinetic . | . . . . . . . . . . . . Secondary . | . . . . . . . . . . . . Self-Inflicted Damage 2 | . . . . . . . . . . 2 . Shots . | . . . . . . . . . . . . Rammed 1 | . . . . . . . . . . 1 . Targets Rammed 1 | . . . . . . . . . . 1 . Kicked . | . . . . . . . . . . . . Crushed . | . . . . . . . . . . . . Highest Temperature 228 | . 5 15 . . 14 . . 36 . 228 8 Average Temperature 26 | . 2 6 . . 10 . . 15 . 103 4 Received Heat Transfer 940 | . 126 90 96 . 57 9 . 265 30 27 240 Siege Activations . | . . . . . . . . . . . . Martial Activations . | . . . . . . . . . . . . Shielding Activations . | . . . . . . . . . . . . Robots Disrupted . | . . . . . . . . . . . . Combat Hostiles . | . . . . . . . . . . . . Robots Corrupted . | . . . . . . . . . . . . Combat Hostiles . | . . . . . . . . . . . . Parts Fried . | . . . . . . . . . . . . Impact Corruptions . | . . . . . . . . . . . . Robots Melted . | . . . . . . . . . . . . Combat Hostiles . | . . . . . . . . . . . . Parts Melted 2 | . 1 . 1 . . . . . . . . Heat Transferred 444 | . . . . . . . . . . . 444 Parts Sabotaged . | . . . . . . . . . . . . Parts Stolen . | . . . . . . . . . . . . Parts Stripped . | . . . . . . . . . . . . Power Chain Reactions . | . . . . . . . . . . . . Alert | -11 -10 -10 -10 -9 -6 -6 -6 -5 -5 -5 -5 ------- Run | Yrd Mat Min Sub Scr Fac Low Low Fac Upp Upp War Maximum Alert Level . | . . . . . . . . . . . . Low Security (%) 100 | . 100 100 . . 100 . . 100 . . . Level 1 . | . . . . . . . . . . . . Level 2 . | . . . . . . . . . . . . Level 3 . | . . . . . . . . . . . . Level 4 . | . . . . . . . . . . . . Level 5 . | . . . . . . . . . . . . High Security . | . . . . . . . . . . . . Max Security . | . . . . . . . . . . . . Peak Influence 191 | . 191 76 . . 92 . . 83 . . . Initial 72 | . . 72 . . . . . 4 . . . Average 28 | . 36 28 . . 25 . . 18 . . . Influence Increases 1028 | . 388 136 . . 137 . . 217 60 90 . Destroy 0b10 Robot/C 400 | . 280 100 . . . . . 20 . . . Destroy Leader 80 | . 50 20 . . . . . 10 . . . Successful Hack 82 | . 13 . . . 17 . . 52 . . . Select Force Hacks 30 | . 30 . . . . . . . . . . Disable Machine 15 | . . . . . 15 . . . . . . Destroy Structure 16 | . . 16 . . . . . . . . . Partial Spotted 15 | . . . . . . . . 15 . . . Lose Combat Pursuer 390 | . 15 . . . 105 . . 120 60 90 . Influence Decreases 1028 | . 203 313 8 . 70 56 3 225 40 105 5 Entered New Map 160 | . . 113 5 . . 26 3 4 . 4 5 Time Decay 701 | . 193 190 3 . 60 30 . 155 10 60 . Lost Part 157 | . 10 10 . . 10 . . 56 30 41 . Lost Ally 10 | . . . . . . . . 10 . . . Squads Dispatched 8 | . 3 . . . 2 . . 3 . . . Investigation 4 | . 2 . . . . . . 2 . . . Extermination 1 | . . . . . . . . 1 . . . Reinforcement 3 | . 1 . . . 2 . . . . . . Assault . | . . . . . . . . . . . . Garrison . | . . . . . . . . . . . . Intercept . | . . . . . . . . . . . . Searches Triggered . | . . . . . . . . . . . . Construction Impeded . | . . . . . . . . . . . . Haulers Reinforced . | . . . . . . . . . . . . Active Scanning Responses . | . . . . . . . . . . . . Cargo Convoy Interrupts . | . . . . . . . . . . . . Stealth | -11 -10 -10 -10 -9 -6 -6 -6 -5 -5 -5 -5 --------- Run | Yrd Mat Min Sub Scr Fac Low Low Fac Upp Upp War Distress Signals 3 | . 1 . . . 1 . . 1 . . . Communications Jammed . | . . . . . . . . . . . . Distress Signals . | . . . . . . . . . . . . Times Spotted 133 | . 18 5 6 . 15 4 . 16 14 14 41 Peak Tracking Total 18 | . 5 3 2 . 5 4 . 5 12 9 18 Tactical Retreats 14 | . 1 . . . 3 . . 4 2 4 . Traps | -11 -10 -10 -10 -9 -6 -6 -6 -5 -5 -5 -5 ------- Run | Yrd Mat Min Sub Scr Fac Low Low Fac Upp Upp War Traps Triggered 4 | . . . . . . . . 4 . . . Indirectly . | . . . . . . . . . . . . Trap Hack Attempts . | . . . . . . . . . . . . Triggered . | . . . . . . . . . . . . Disarmed . | . . . . . . . . . . . . Reprogrammed . | . . . . . . . . . . . . Reused . | . . . . . . . . . . . . Traps Extracted . | . . . . . . . . . . . . Installed . | . . . . . . . . . . . . Triggered . | . . . . . . . . . . . . Machines | -11 -10 -10 -10 -9 -6 -6 -6 -5 -5 -5 -5 ---------- Run | Yrd Mat Min Sub Scr Fac Low Low Fac Upp Upp War Machines Disabled 2 | . . . 1 . 1 . . . . . . Max in Single Turn 1 | . . . 1 . 1 . . . . . . Garrison Access 1 | . . . . . . . . 1 . . . Machines Repaired . | . . . . . . . . . . . . Machines Dismantled . | . . . . . . . . . . . . Machines Sabotaged . | . . . . . . . . . . . . Overloaded Fab Kills . | . . . . . . . . . . . . Hacking | -11 -10 -10 -10 -9 -6 -6 -6 -5 -5 -5 -5 --------- Run | Yrd Mat Min Sub Scr Fac Low Low Fac Upp Upp War Machines Accessed 31 | . 9 . 3 2 1 . . 10 . . 6 Terminals 11 | . 6 . . . 1 . . 4 . . . Fabricators 2 | . . . . . . . . 2 . . . Repair Stations 4 | . 1 . . . . . . 3 . . . Recycling Units 2 | . 2 . . . . . . . . . . Scanalyzers . | . . . . . . . . . . . . Garrison Access 1 | . . . . . . . . 1 . . . Total Hacks 108 | . 37 . 12 5 6 . . 27 . . 21 Successful 81 | . 20 . 12 5 5 . . 18 . . 21 Failed 27 | . 17 . . . 1 . . 9 . . . Catastrophic 1 | . . . . . . . . 1 . . . Database Lockouts . | . . . . . . . . . . . . Manual 45 | . 22 . . . 6 . . 17 . . . Terminals 47 | . 27 . . . 6 . . 14 . . . Fabricators 5 | . . . . . . . . 5 . . . Repair Stations 10 | . 3 . . . . . . 7 . . . Recycling Units 7 | . 7 . . . . . . . . . . Scanalyzers . | . . . . . . . . . . . . Garrison Access 1 | . . . . . . . . 1 . . . Terminal Hacks 49 | . 7 . 12 5 2 . . 2 . . 21 Record 19 | . . . 9 4 . . . . . . 6 Robot Analysis 2 | . 2 . . . . . . . . . . Prototype ID Bank 15 | . 1 . . . . . . . . . 14 Open Door 2 | . . . 1 . . . . . . . 1 Terminal Index 2 | . . . . . 1 . . 1 . . . Locate Traps 1 | . 1 . . . . . . . . . . Hauler Manifests 1 | . 1 . . . . . . . . . . Zone Layout 4 | . 2 . . . 1 . . 1 . . . Proto ID Catalog 2 | . . . 1 1 . . . . . . . Release Object 1 | . . . 1 . . . . . . . . Fabricator Hacks 1 | . . . . . . . . 1 . . . Network Status 1 | . . . . . . . . 1 . . . Repair Station Hacks 6 | . 2 . . . . . . 4 . . . Scan Component 3 | . 1 . . . . . . 2 . . . Repair 3 | . 1 . . . . . . 2 . . . Recycling Unit Hacks 2 | . 2 . . . . . . . . . . Report Inventory 1 | . 1 . . . . . . . . . . Retrieve Components 1 | . 1 . . . . . . . . . . Scanalyzer . | . . . . . . . . . . . . Garrison Access Hacks 1 | . . . . . . . . 1 . . . Seal Access 1 | . . . . . . . . 1 . . . Unauthorized Hacks 22 | . 9 . . . 3 . . 10 . . . Terminals 15 | . 6 . . . 3 . . 6 . . . Track 3 | . 1 . . . 1 . . 1 . . . Assimilate 1 | . . . . . . . . 1 . . . Botnet 7 | . 3 . . . 1 . . 3 . . . Operators 3 | . 1 . . . 1 . . 1 . . . Search 1 | . 1 . . . . . . . . . . Fabricators 3 | . . . . . . . . 3 . . . Report 1 | . . . . . . . . 1 . . . Liberate 1 | . . . . . . . . 1 . . . Recompile 1 | . . . . . . . . 1 . . . Repair Stations 1 | . . . . . . . . 1 . . . Patch 1 | . . . . . . . . 1 . . . Recycling Units 3 | . 3 . . . . . . . . . . Reject 1 | . 1 . . . . . . . . . . Mask 1 | . 1 . . . . . . . . . . Tunnel 1 | . 1 . . . . . . . . . . Scanalyzers . | . . . . . . . . . . . . Garrison Access . | . . . . . . . . . . . . Data Cores Recovered . | . . . . . . . . . . . . Used . | . . . . . . . . . . . . Hacking Detections 15 | . 8 . . . . . . 7 . . . Full Trace Events . | . . . . . . . . . . . . Feedback Events . | . . . . . . . . . . . . Feedback Blocked . | . . . . . . . . . . . . Robot Schematics Acquired . | . . . . . . . . . . . . Robots Built . | . . . . . . . . . . . . Authchips . | . . . . . . . . . . . . Time . | . . . . . . . . . . . . Total Robot Build Rating . | . . . . . . . . . . . . Part Schematics Acquired . | . . . . . . . . . . . . Parts Built . | . . . . . . . . . . . . Authchips . | . . . . . . . . . . . . Time . | . . . . . . . . . . . . Total Part Build Rating . | . . . . . . . . . . . . Part Studies Acquired . | . . . . . . . . . . . . Parts Repaired 3 | . 1 . . . . . . 2 . . . Time 101 | . 26 . . . . . . 75 . . . Parts Recycled . | . . . . . . . . . . . . Recycled Matter . | . . . . . . . . . . . . Retrieved Matter . | . . . . . . . . . . . . Retrieved Components 9 | . 9 . . . . . . . . . . Parts Scanalyzed . | . . . . . . . . . . . . Part Schematics Acquired . | . . . . . . . . . . . . Parts Damaged . | . . . . . . . . . . . . Bothacking | -11 -10 -10 -10 -9 -6 -6 -6 -5 -5 -5 -5 ------------ Run | Yrd Mat Min Sub Scr Fac Low Low Fac Upp Upp War Used RIF Installer . | . . . . . . . . . . . . Robots Hacked . | . . . . . . . . . . . . Non-combat . | . . . . . . . . . . . . Combat . | . . . . . . . . . . . . Robot Hacks Applied . | . . . . . . . . . . . . Relay Couplers Released . | . . . . . . . . . . . . Fabnet Peak Effective % . | . . . . . . . . . . . . Robots Rewired . | . . . . . . . . . . . . Allies Hacked . | . . . . . . . . . . . . Hacks Repelled . | . . . . . . . . . . . . Allies | -11 -10 -10 -10 -9 -6 -6 -6 -5 -5 -5 -5 -------- Run | Yrd Mat Min Sub Scr Fac Low Low Fac Upp Upp War Total Allies 1 | . . . . . . . . 1 . . . Largest Group 1 | . . . . . . . . 1 . . . Highest-Rated Group 10 | . . . . . . . . 10 . . . Highest-Rated Ally 10 | . . . . . . . . 10 . . . Total Orders . | . . . . . . . . . . . . Ally Attacks . | . . . . . . . . . . . . Total Damage . | . . . . . . . . . . . . Kills . | . . . . . . . . . . . . Allies Corrupted . | . . . . . . . . . . . . Allies Melted 1 | . . . . . . . . . . . 1 Intel | -11 -10 -10 -10 -9 -6 -6 -6 -5 -5 -5 -5 ------- Run | Yrd Mat Min Sub Scr Fac Low Low Fac Upp Upp War Active Infowar (turns) 4644 | . 438 528 1256 1457 238 . . 528 199 . . Sensors 361 | . . . . . 2 . . 243 116 . . Terrain 728 | . . . . . 1 . . 528 199 . . Seismic 3915 | . 438 528 1256 1457 236 . . . . . . Robot Analysis Total 2 | . 2 . . . . . . . . . . Derelict Logs Recovered 8 | . . 2 . . . . . . 3 3 . Drone Launches . | . . . . . . . . . . . . Drone Recoveries . | . . . . . . . . . . . . Exploration | -11 -10 -10 -10 -9 -6 -6 -6 -5 -5 -5 -5 ------------- Run | Yrd Mat Min Sub Scr Fac Low Low Fac Upp Upp War Turns Passed 6647 | . 886 528 1263 1457 339 69 6 663 208 223 1005 Spaces Moved 6188 | 1 497 259 741 911 623 199 16 952 595 494 900 Core 628 | . . . . . . . . . . 139 489 Treads 235 | . 89 144 . . 2 . . . . . . Legs 33 | 1 32 . . . . . . . . . . Wheels 2242 | . 376 115 741 911 50 . . 49 . . . Hover 399 | . . . . . . . . . . . 399 Flight 2651 | . . . . . 571 199 16 903 595 355 12 Fastest Speed 25 | 120 115 115 115 160 34 34 34 25 34 34 32 Average Speed 95 | 120 137 184 153 160 46 34 34 47 34 41 104 Slowest Speed 250 | 120 240 240 160 160 160 34 34 114 37 200 250 Overloaded Moves . | . . . . . . . . . . . . Propulsion Burnouts . | . . . . . . . . . . . . Robots Hopped 30 | . . . . . 1 . 1 19 4 5 . Potential Cave-ins . | . . . . . . . . . . . . Cave-ins Triggered . | . . . . . . . . . . . . Exploration Rate (%) 48 | 2 77 54 49 77 18 47 6 27 67 65 90 Regions Visited 11 Branch Regions 8 Pre-discovered Areas 1 | . 1 . . . . . . . . . . Known Exits Taken 6 | . . . . . 1 1 1 1 1 1 . Unknown Exits Taken 5 | 1 1 1 1 1 . . . . . . . Scrap Searched 12 | . . 1 4 2 . 1 . . 1 3 . Spaces Dug . | . . . . . . . . . . . . Terrain Destroyed 22 | . . 22 . . . . . . . . . Melee . | . . . . . . . . . . . . Projectile . | . . . . . . . . . . . . AOE 22 | . . 22 . . . . . . . . . Terrain Rammed . | . . . . . . . . . . . . Walls Destroyed . | . . . . . . . . . . . . Machines Disabled . | . . . . . . . . . . . . Actions | -11 -10 -10 -10 -9 -6 -6 -6 -5 -5 -5 -5 --------- Run | Yrd Mat Min Sub Scr Fac Low Low Fac Upp Upp War Total 6711 | . 621 289 828 911 674 200 14 1124 595 506 949 Wait 195 | . 62 3 . 1 2 . . 89 1 6 31 Move 6121 | . 496 258 740 910 620 198 13 915 587 484 900 Hop 26 | . . . . . 1 . 1 17 3 4 . Pick Up 92 | . 13 5 27 . 16 1 . 21 2 5 2 Fast Attach 13 | . 1 . . . 5 . . 3 . . 4 Attach 43 | . 3 3 7 . 8 . . 15 1 4 2 Detach 7 | . . . . . 3 . . 1 1 . 2 Swap 21 | . 8 3 2 . 4 . . 4 . . . Drop 53 | . 1 3 25 . 13 1 . 6 . 2 2 Fire 87 | . 37 14 21 . 1 . . 8 . . 6 Melee 6 | . . . 6 . . . . . . . . Ram 1 | . . . . . . . . . . 1 . Kick . | . . . . . . . . . . . . Crush . | . . . . . . . . . . . . Escape Stasis 45 | . . . . . . . . 45 . . . Rewire . | . . . . . . . . . . . . Trap . | . . . . . . . . . . . . Miscellaneous 1 | . . . . . 1 . . . . . . Route ------- -11/Scrapyard -10/Materials (discovered 4 exits: [*Mat x2] / [*Min x2]) -10/Mines (discovered 2 exits: [*Mat] / *Sub) -10/Subcaves -9/Scraptown -6/Factory -6/Lower Caves -6/Lower Caves -5/Factory -5/Upper Caves -5/Upper Caves -5/Warlord (discovered 1 exit: [*Pro]) History --------- Turn | Location | Event 1 | -11/Scrapyard | Discovered new exit (range 0) 1 | -11/Scrapyard | Entered Materials 309 | -10/Materials | Build established: Mutant 381 | -10/Materials | Repaired Lrg. Storage Unit 455 | -10/Materials | Discovered new exit (range 15) 603 | -10/Materials | Discovered new exit (range 13) 678 | -10/Materials | Discovered new exit (range 3) 817 | -10/Materials | Discovered new exit (range 12) 887 | -10/Materials | Entered Mines 935 | -10/Mines | Found a Scrap Suit stashed away for nefarious purposes 938 | -10/Mines | Found Scrap Suit 947 | -10/Mines | YI-UF0 nonchalantly dropped a Grenade Launcher on the ground 1082 | -10/Mines | Core integrity fell below 50% 1174 | -10/Mines | Discovered new exit (range 10) 1277 | -10/Mines | Learned Materials stockpile data 1313 | -10/Mines | Discovered new exit (range 4) 1415 | -10/Mines | Entered Subcaves 1416 | -10/Subcaves | Approached by a straggling Scientist 1432 | -10/Subcaves | Disturbed a concealed Subdweller 1537 | -10/Subcaves | Visited 4L-MR0's lab 1560 | -10/Subcaves | Found Tower Shield 1582 | -10/Subcaves | Attached Tower Shield, gained temporary slots: Power, Propulsion x2, Utility x2, Weapon x2 2004 | -10/Subcaves | Build established: Gunner 2088 | -10/Subcaves | Scientist uncovered a shortcut to Scraptown 2242 | -10/Subcaves | A swath of the cavern ceiling suddenly collapsed 2318 | -10/Subcaves | Shifting Twisted Machinery released Sub. Shrapnel Launcher 2374 | -10/Subcaves | Found SUBCON Basin 2678 | -10/Subcaves | Entered Scraptown 2779 | -9/Scraptown | Visited Shadow of the Wyrm 2811 | -9/Scraptown | Visited SPCMW 2872 | -9/Scraptown | Visited Spacefarers 2971 | -9/Scraptown | Visited The Evicted 3008 | -9/Scraptown | Visited Assassins FH 3451 | -9/Scraptown | Visited UFD Registry 3451 | -9/Scraptown | Registered with UFD as "Databucket" 3489 | -9/Scraptown | Visited Science Guys 3551 | -9/Scraptown | Visited Infowarlord's Domain 3609 | -9/Scraptown | Visited Scrapoid Research Area 3671 | -9/Scraptown | Visited Scrap Suit Storage 3716 | -9/Scraptown | Visited DA-N13 Charitable Foundation 3731 | -9/Scraptown | Found DCF Scrap (31 items) 3774 | -9/Scraptown | Visited Abandonware Association 3785 | -9/Scraptown | Learned abandonware demo "OVRCLOCK.EXE" 3793 | -9/Scraptown | Learned abandonware demo "REBOOT5.EXE" 3833 | -9/Scraptown | Visited Science Testing Area 3868 | -9/Scraptown | Visited Cartography Club 4131 | -9/Scraptown | Discovered new exit (range 3) 4135 | -9/Scraptown | Entered Factory 4135 | -6/Factory | Evolved 8 slots: Propulsion x4, Utility x4 4136 | -6/Factory | Released subatomizers from SUBCON Basin 4308 | -6/Factory | Noticed a derelict Sapper rigging charges 4346 | -6/Factory | Spotted B-75 Beast 4384 | -6/Factory | Discovered new exit (range 20) 4399 | -6/Factory | Identified exit to Lower Caves 4474 | -6/Factory | Entered Lower Caves 4508 | -6/Lower Caves | Build established: Mutant 4539 | -6/Lower Caves | Discovered new exit (range 14) 4543 | -6/Lower Caves | Identified exit to Lower Caves 4543 | -6/Lower Caves | Entered another Lower Caves area 4545 | -6/Lower Caves | Discovered new exit (range 12) 4548 | -6/Lower Caves | Identified exit to Factory 4549 | -6/Lower Caves | Entered Factory 4549 | -5/Factory | Evolved 2 slots: Power x1, Propulsion x1 4638 | -5/Factory | Repaired Nuclear Pulse Thruster 4810 | -5/Factory | Repaired Nuclear Pulse Thruster 4880 | -5/Factory | Build established: Hacker-Mutant 4926 | -5/Factory | Lost 3 parts (1p1u1w) 5046 | -5/Factory | Lost 3 parts (3n) 5188 | -5/Factory | Discovered new exit (range 12) 5211 | -5/Factory | Identified exit to Upper Caves 5212 | -5/Factory | Entered Upper Caves 5252 | -5/Upper Caves | Identified exit to Upper Caves 5276 | -5/Upper Caves | Spotted B-75 Beast 5278 | -5/Upper Caves | Build established: Scout 5349 | -5/Upper Caves | Encountered a Warlord checkpoint 5360 | -5/Upper Caves | Learned 12 Factory zone layouts 5384 | -5/Upper Caves | Attracted the attention of an 0b10 outpost 5420 | -5/Upper Caves | Entered another Upper Caves area 5459 | -5/Upper Caves | Learned Factory emergency access door positions 5460 | -5/Upper Caves | Learned Factory security intel 5468 | -5/Upper Caves | Encountered a Warlord checkpoint 5475 | -5/Upper Caves | Lost 4 parts (1p1n1u1w) 5498 | -5/Upper Caves | Learned location of 1 exit from Factory 5590 | -5/Upper Caves | Lost 4 allies 5600 | -5/Upper Caves | Lost 4 parts (3n1u) 5624 | -5/Upper Caves | Attracted the attention of an 0b10 checkpoint 5637 | -5/Upper Caves | Core integrity fell below 50% 5640 | -5/Upper Caves | Discovered new exit (range 7) 5643 | -5/Upper Caves | Identified exit to Warlord 5643 | -5/Upper Caves | Entered Warlord 5666 | -5/Warlord | System corruption cleaned by Quarantine Array 5811 | -5/Warlord | Rebuked by Warlord 5836 | -5/Warlord | Warlord's base attacked by MAIN.C 5957 | -5/Warlord | Build established: Mutant 5986 | -5/Warlord | Met EX-DEC 6186 | -5/Warlord | Warlord forces counterattacked 6498 | -5/Warlord | Spotted Executioner 6511 | -5/Warlord | Warlord base infiltrated, sounded retreat 6517 | -5/Warlord | Spotted Striker 6517 | -5/Warlord | Spotted Executioner 6529 | -5/Warlord | Lost 7 allies 6552 | -5/Warlord | Lost 5 parts (2p2n1u) 6568 | -5/Warlord | Spotted Striker 6623 | -5/Warlord | Spotted Striker 6640 | -5/Warlord | Core integrity fell below 20% 6646 | -5/Warlord | Spotted B-86 Titan 6646 | -5/Warlord | Spotted Executioner 6646 | -5/Warlord | Spotted B-75 Beast 6648 | -5/Warlord | Discovered new exit (range 15) 6648 | -5/Warlord | Destroyed by B-86 Titan with Matter Neutralizer Last Messages --------------- 06626_ RY-FRD(M) destroyed. 06626_ 4T-M7M(l) destroyed. 06629_ RK-CRI(K) knocked back. 06632_ G-50 Soldier knocked back. 06634_ RK-CRI(K) suffers critical hit (Burn). 06635_ RK-CRI(K) knocked back. 06635_ G-50 Soldier knocked back. 06635_ RK-CRI(K) knocked back. 06636_ ANNOUNCEMENT: Detected 1 Behemoth squad, 1 Programmer squad, 2 Grunt squads, with prototype support. 06638_ RK-CRI(K) destroyed. 06638_ Imp. Hacking Suite destroyed. 06640_ Acquired Cesium-ion Thruster. 06640_ Critical hit (Burn: +37). 06642_ I-47 Archangel knocked back. 06642_ Acquired Cesium-ion Thruster. 06644_ Backup Laser III destroyed. 06646_ Acquired 15 matter. 06648_ EXIT=FOUND Map ----- +----------------------------------------------------+ | ??????????????????????????????????????? | | ??????????????????????????????????????? | | ??????????????????????????????????????? | | ??????????????????????????????????????? | | ??????????????????????????????????????? | | ??????????????????????????????????????? | | ??????????????????????????????????????? | | ??????????????????????????????????????? | | ??????????????????????????????????????? | | ??????????????????????????????????????? | | ??????????????????????????????????????? | | ??????????????????????????????????????? | | ????????????????????????????# ?????? | | ???????????????? ????????? < ???? | | ??????????????# ??????? ??? | | ??????????????? #?????? #??? | | ???????????????? ?????? p ;???? | | ????????????????#; ;?????" BB ????? | | ?????????????????#; ?????#;BB #????? | | ?????????????????#;; ;???## p ;#????? | | ?????????????????# ; ;#### EBB;##???? | | ??????????????????#; % BB #???? | | ???????????????????;; = ; ????? | | ?????????????????????; %[ #??????? | | ???""?????????????????# #??????? | | ??#""#????????????????# @ #??????? | | ??#""#????????????????# ##??????? | | ??#""#?###????????????##;; #?????##? | | ###""###=######????????##;; ###?? #? | | ""[!=" ########??#### ;## #?? | | ""= = [ = = *!["#??####; ; #??? | | ""= [ ==[ =%==####"#=%% ##??? | | = [ == !%%!]#!]=[ ##??? | | % [ !%%% */ ==%%*%;; #??? | | ! %%%*]=%%][% /%!* ""## #??? | | * % %% =#!%=[ "# # #??? | | ==="" !* ==!=##= ##### #??? | | ![["" = !==#%### #???? ??? | | !*!"" ## #%#####[!##?# ##???? #?? | | ##""####" ####???####?## #????? #?? | | ###""#?? ###??????????## #???? ???? | | #?#""#????????????????# ##???? ???? | | ???""????????????????## ##????? ???? | | ?????????????????????# #?????? #???? | | ?????????????????????# #?????? #???? | | ?????????????????????# ##?????? #???? | | ?????????????????????# #??????? ##??? | | ????????????????????## ##????## #??? | | ???????????????????## ##??## #??? | | #####??????????????# ##?# #??? | +----------------------------------------------------+ Best States ------------- Heat Dissipation 40 Energy Generation 24 Energy Capacity 260 Matter Stores 300 Matter Capacity 300 Sight Range 16 Robot Scan Range 15 Terrain Scan Range 20 Terrain Scan Density 210 Armor Coverage 2000 Phase Shifting 5 Evasion (%) 73 Recoil Reduction 3 Offensive Hacking 12 Defensive Hacking 12 Item Schematics ----------------- None Robot Schematics ------------------ None Fabricated ------------ Nothing Repaired ---------- Lrg. Storage Unit | 38% | -10/Materials Nuclear Pulse Thruster | 30% | -5/Factory Nuclear Pulse Thruster | 33% | -5/Factory Studied --------- None Alien Tech Used ----------------- None Achievements -------------- A Powerful Ally? Mistaken Identity Pestilence Challenges ------------ None Game ------ Seed OmegaHypercooledMinigun Manual? 0 Play Time 01:05:13 Cumulative 84.8 hours Start 2025.12.31 @ 15:43:15 End 2025.12.31 @ 16:47:40 Sessions 1 Manual Loads 0 Difficulty Rogue Special Mode None Game No. 135 Rogue 111 Adventurer 20 Explorer 4 Win Type - Total 1 Types 0/0/0/1/0/0/0/0/0/0 Lore% 55 Gallery% 45 Achievement% 36 Wizard Run 0 Options --------- Layout 1 ASCII 0 Keyboard 0 Movement Numpad Keybinds 0 Fullscreen 2 Font 24/Smallcaps Map View 50x35 Zoom Use 0% Tactical HUD 1 Map Filters NONE Filters NONE Steam 1 RUN: b5b9c9ea-ce3c-4180-8e4d-9b5380e15f04